fUST/lending_fUST_20250313
["ID","MTS","AMOUNT","RATE_DAILY","PERIOD"]
[356032709,1741809054032,-4862.11,0.00022191,2]
[356032710,1741809054042,-500.0,0.00022191,2]
[356032711,1741809054051,-500.0,0.00022191,2]
[356032712,1741809054060,-500.0,0.00022191,2]
[356032713,1741809054070,-500.0,0.00022191,2]
[356032714,1741809054084,-3071.24,0.00022191,2]
[356032715,1741809054093,-500.0,0.00022191,2]
[356032716,1741809054103,-500.0,0.00022191,2]
[356032717,1741809054113,-500.0,0.00022191,2]
[356032718,1741809054122,-500.0,0.00022191,2]
[356032719,1741809054132,-500.0,0.00022191,2]
[356032720,1741809054142,-151.0,0.00022191,7]
[356032721,1741809054153,-151.0,0.00022191,7]
[356032722,1741809054162,-845.05,0.00022191,2]
[356032723,1741809054396,-500.0,0.00022191,2]
[356032724,1741809054405,-151.0,0.00022191,7]
[356032725,1741809054415,-151.0,0.00022191,7]
[356032726,1741809054424,-151.0,0.00022191,7]
[356032727,1741809054433,-237.533866,0.00022191,7]
[356032728,1741809054442,-3283.98,0.00022191,2]
[356032729,1741809054452,-500.0,0.00022191,2]
[356032730,1741809054461,-500.0,0.00022191,2]
[356032731,1741809054471,-500.0,0.00022191,2]
[356032732,1741809054480,-500.0,0.00022191,2]
[356032733,1741809054489,-500.0,0.00022191,2]
[356032734,1741809054498,-5064.97,0.00022191,2]
[356032735,1741809054507,-151.0,0.00022191,7]
[356032736,1741809054516,-151.0,0.00022191,7]
[356032737,1741809054526,-393.0,0.00022192,2]
[356032738,1741809054535,-151.0,0.000222,10]
[356032739,1741809054545,-151.0,0.000222,6]
[356032740,1741809054554,-19630.16181988,0.0002224,2]
[356032741,1741809054563,-729.71021274,0.00022275,2]
[356032742,1741809054572,-2364.75028431,0.00022279,3]
[356032743,1741809054582,-151.0,0.000223,9]
[356032744,1741809054591,-599.99,0.000223,2]
[356032745,1741809054601,-2855.77730738,0.000223,2]
[356032746,1741809054611,-160.0,0.00022356,2]
[356032747,1741809054621,-15577.25547611,0.00022356,2]
[356032748,1741809054630,-416.66666667,0.00022356,2]
[356032749,1741809054640,-160.0,0.00022356,2]
[356032750,1741809054650,-300.0,0.000224,10]
[356032751,1741809054659,-151.0,0.000224,7]
[356032752,1741809054669,-477.691,0.000224,2]
[356032753,1741809054679,-175.31412188,0.000224,2]
[356032754,1741809054688,-196.72406867,0.00022464,2]
[356032755,1741809054697,-148808.44319417,0.00022465,5]
[356032756,1741809054707,-29268.4395158,0.00022465,5]
[356032757,1741809054716,-5000.0,0.00022465,2]
[356032758,1741809054726,-5000.0,0.00022465,2]
[356032759,1741809054736,-2270.0,0.00022465,2]
[356032760,1741809054745,-5000.0,0.00022465,2]
[356032761,1741809054754,-611.56,0.00022465,2]
[356032762,1741809054764,-500.0,0.00022465,2]
[356032763,1741809054773,-500.0,0.00022465,2]
[356032764,1741809054782,-500.0,0.00022465,2]
[356032765,1741809054791,-500.0,0.00022465,2]
[356032766,1741809054801,-571.78,0.00022465,2]
[356032767,1741809054810,-823.03,0.00022465,2]
[356032768,1741809054819,-500.0,0.00022465,2]
[356032769,1741809054828,-500.0,0.00022465,2]
[356032770,1741809054837,-500.0,0.00022465,2]
[356032771,1741809054846,-151.151161,0.00022465,7]
[356032772,1741809054855,-889.88,0.00022465,2]
[356032773,1741809054864,-500.0,0.00022465,2]
[356032774,1741809054872,-500.0,0.00022465,2]
[356032775,1741809054882,-1004.54,0.00022465,2]
[356032776,1741809054890,-625.79,0.00022465,2]
[356032777,1741809054900,-590.27136488,0.00022465,2]
[356032778,1741809054909,-500.0,0.00022465,2]
[356032779,1741809054918,-500.0,0.00022465,2]
[356032780,1741809054927,-500.0,0.00022465,2]
[356032781,1741809054936,-500.0,0.00022465,5]
[356032782,1741809054945,-500.0,0.00022465,2]
[356032783,1741809054955,-500.0,0.00022465,2]
[356032784,1741809054964,-511.02908351,0.00022465,2]
[356032785,1741809054973,-500.0,0.00022465,2]
[356032786,1741809054982,-500.0,0.00022465,2]
[356032787,1741809054996,-500.0,0.00022465,2]
[356032788,1741809055007,-500.0,0.00022465,2]
[356032789,1741809055017,-500.0,0.00022465,2]
[356032790,1741809055027,-500.0,0.00022465,2]
[356032791,1741809055036,-500.0,0.00022465,2]
[356032792,1741809055046,-500.0,0.00022465,2]
[356032793,1741809055055,-500.0,0.00022465,2]
[356032794,1741809055064,-162.389569,0.00022465,7]
[356032795,1741809055075,-162.389569,0.00022465,7]
[356032796,1741809055088,-500.0,0.00022465,2]
[356032797,1741809055097,-500.0,0.00022465,2]
[356032798,1741809055106,-500.0,0.00022465,2]
[356032799,1741809055116,-151.0,0.00022465,7]
[356032800,1741809055127,-151.0,0.00022465,7]
[356032801,1741809055136,-151.0,0.00022465,7]
[356032802,1741809055146,-500.0,0.00022465,2]
[356032803,1741809055155,-500.0,0.00022465,2]
[356032804,1741809055168,-500.0,0.00022465,2]
[356032805,1741809055178,-500.0,0.00022465,2]
[356032806,1741809055188,-500.0,0.00022465,2]
[356032807,1741809055197,-161.58520475,0.00022465,2]
[356032808,1741809055209,-151.0,0.00022465,7]
[356032809,1741809055219,-500.0,0.00022465,2]
[356032810,1741809055229,-500.0,0.00022465,2]
[356032811,1741809055239,-500.0,0.00022465,2]
[356032812,1741809055248,-500.0,0.00022465,2]
[356032813,1741809055258,-500.0,0.00022465,2]
[356032814,1741809055267,-500.0,0.00022465,2]
[356032815,1741809055277,-500.0,0.00022465,2]
[356032816,1741809055286,-500.0,0.00022465,2]
[356032817,1741809055295,-500.0,0.00022465,2]
[356032818,1741809055305,-929.88,0.00022465,2]
[356032819,1741809055314,-860.93,0.00022465,2]
[356032820,1741809055323,-151.0,0.00022465,7]
[356032821,1741809055333,-151.0,0.00022465,7]
[356032822,1741809055342,-500.0,0.00022465,2]
[356032823,1741809055351,-151.0,0.00022465,7]
[356032824,1741809055361,-151.0,0.00022465,7]
[356032825,1741809055371,-499.08584756,0.00022465,2]
[356032826,1741809055380,-514.1,0.00022465,2]
[356032827,1741809055390,-687.2,0.00022465,2]
[356032828,1741809055399,-500.0,0.00022465,2]
[356032829,1741809055409,-533.65329777,0.00022465,2]
[356032830,1741809055418,-500.0,0.00022465,2]
[356032831,1741809055428,-500.0,0.00022465,2]
[356032832,1741809055437,-500.0,0.00022465,2]
[356032833,1741809055447,-500.0,0.00022465,2]
[356032834,1741809055458,-500.0,0.00022465,2]
[356032835,1741809055467,-500.0,0.00022465,2]
[356032836,1741809055476,-500.0,0.00022465,2]
[356032837,1741809055485,-556.49728153,0.00022465,2]
[356032838,1741809055494,-500.0,0.00022465,2]
[356032839,1741809055504,-946.27,0.00022465,2]
[356032840,1741809055513,-500.0,0.00022465,2]
[356032841,1741809055523,-500.0,0.00022465,2]
[356032842,1741809055533,-500.0,0.00022465,2]
[356032843,1741809055542,-500.0,0.00022465,2]
[356032844,1741809055552,-500.0,0.00022465,2]
[356032845,1741809055561,-500.0,0.00022465,2]
[356032846,1741809055571,-151.0,0.00022465,7]
[356032847,1741809055580,-151.0,0.00022465,7]
[356032848,1741809055589,-500.0,0.00022465,2]
[356032849,1741809055599,-500.0,0.00022465,2]
[356032850,1741809055608,-162.426686,0.00022465,7]
[356032851,1741809055617,-500.0,0.00022465,2]
[356032852,1741809055626,-151.0,0.00022465,7]
[356032853,1741809055635,-151.0,0.00022465,7]
[356032854,1741809055644,-500.0,0.00022465,2]
[356032855,1741809055654,-500.0,0.00022465,2]
[356032856,1741809055663,-885.6,0.00022465,2]
[356032857,1741809055672,-563.81168992,0.00022465,2]
[356032858,1741809055682,-500.0,0.00022465,2]
[356032859,1741809055691,-500.0,0.00022465,2]
[356032860,1741809055701,-500.0,0.00022465,2]
[356032861,1741809055711,-500.0,0.00022465,2]
[356032862,1741809055721,-500.0,0.00022465,2]
[356032863,1741809055733,-500.0,0.00022465,2]
[356032864,1741809055742,-151.0,0.00022465,7]
[356032865,1741809055752,-151.0,0.00022465,7]
[356032866,1741809055761,-500.0,0.00022465,2]
[356032867,1741809055771,-500.0,0.00022465,2]
[356032868,1741809055780,-500.0,0.00022465,2]
[356032869,1741809055790,-500.0,0.00022465,2]
[356032870,1741809055799,-500.0,0.00022465,2]
[356032871,1741809055808,-500.0,0.00022465,2]
[356032872,1741809055818,-500.0,0.00022465,2]
[356032873,1741809055827,-1433.96,0.00022465,2]
[356032874,1741809055836,-500.0,0.00022465,2]
[356032875,1741809055845,-500.0,0.00022465,2]
[356032876,1741809055854,-500.0,0.00022465,2]
[356032877,1741809055863,-500.0,0.00022465,2]
[356032878,1741809055873,-500.0,0.00022465,2]
[356032879,1741809055882,-561.40885405,0.00022465,2]
[356032880,1741809055891,-500.0,0.00022465,2]
[356032881,1741809055899,-500.0,0.00022465,2]
[356032882,1741809055909,-949.84,0.00022465,2]
[356032883,1741809055918,-505.58278429,0.00022465,2]
[356032884,1741809055927,-500.0,0.00022465,2]
[356032885,1741809055937,-500.0,0.00022465,2]
[356032886,1741809055946,-861.29,0.00022465,2]
[356032887,1741809055957,-517.64,0.00022465,2]
[356032888,1741809055966,-380.99794679,0.00022465,2]
[356032889,1741809055975,-500.0,0.00022465,2]
[356032890,1741809055984,-500.0,0.00022465,2]
[356032891,1741809055993,-500.0,0.00022465,2]
[356032892,1741809056002,-500.0,0.00022465,2]
[356032893,1741809056011,-955.96,0.00022465,2]
[356032894,1741809056020,-502.29,0.00022465,2]
[356032895,1741809056029,-514.87,0.00022465,2]
[356032896,1741809056039,-2854.903074,0.00022465,7]
[356032897,1741809056048,-2854.903074,0.00022465,7]
[356032898,1741809056057,-2854.903074,0.00022465,7]
[356032899,1741809056069,-2854.903074,0.00022465,7]
[356032900,1741809056081,-842.43,0.00022465,2]
[356032901,1741809056090,-500.0,0.00022465,2]
[356032902,1741809056099,-500.0,0.00022465,2]
[356032903,1741809056109,-500.0,0.00022465,2]
[356032904,1741809056122,-500.0,0.00022465,2]
[356032905,1741809056132,-151.0,0.00022465,7]
[356032906,1741809056142,-151.0,0.00022465,7]
[356032907,1741809056152,-500.0,0.00022465,2]
[356032908,1741809056164,-500.0,0.00022465,2]
[356032909,1741809056173,-151.0,0.00022465,7]
[356032910,1741809056183,-151.0,0.00022465,7]
[356032911,1741809056192,-389.92741209,0.00022465,2]
[356032912,1741809056201,-500.0,0.00022465,2]
[356032913,1741809056212,-500.0,0.00022465,2]
[356032914,1741809056221,-500.0,0.00022465,2]
[356032915,1741809056231,-500.0,0.00022465,2]
[356032916,1741809056240,-500.0,0.00022465,2]
[356032917,1741809056249,-1009.18,0.00022465,2]
[356032918,1741809056258,-500.0,0.00022465,2]
[356032919,1741809056268,-717.98336,0.00022465,7]
[356032920,1741809056277,-500.0,0.00022465,2]
[356032921,1741809056286,-717.98336,0.00022465,7]
[356032922,1741809056296,-500.0,0.00022465,2]
[356032923,1741809056306,-151.0,0.00022465,7]
[356032924,1741809056316,-500.0,0.00022465,2]
[356032925,1741809056325,-151.0,0.00022465,7]
[356032926,1741809056335,-220.089596,0.00022465,7]
[356032927,1741809056344,-500.0,0.00022465,2]
[356032928,1741809056353,-220.089596,0.00022465,7]
[356032929,1741809056362,-500.0,0.00022465,2]
[356032930,1741809056372,-220.089596,0.00022465,7]
[356032931,1741809056381,-220.089596,0.00022465,7]
[356032932,1741809056390,-500.0,0.00022465,2]
[356032933,1741809056399,-151.0,0.00022465,7]
[356032934,1741809056409,-151.0,0.00022465,7]
[356032935,1741809056418,-151.0,0.00022465,7]
[356032936,1741809056427,-166.29440643,0.00022465,2]
[356032937,1741809056437,-500.0,0.00022465,2]
[356032938,1741809056446,-500.0,0.00022465,2]
[356032939,1741809056456,-500.0,0.00022465,2]
[356032940,1741809056466,-500.0,0.00022465,2]
[356032941,1741809056475,-546.06,0.00022465,2]
[356032942,1741809056485,-151.0,0.00022465,7]
[356032943,1741809056495,-151.0,0.00022465,7]
[356032944,1741809056504,-151.0,0.00022465,7]
[356032945,1741809056514,-500.0,0.00022465,2]
[356032946,1741809056523,-500.0,0.00022465,2]
[356032947,1741809056534,-295.134134,0.00022465,7]
[356032948,1741809056544,-214.10958853,0.00022465,2]
[356032949,1741809056553,-151.0,0.00022465,7]
[356032950,1741809056563,-500.0,0.00022465,2]
[356032951,1741809056573,-193.000572,0.00022465,7]
[356032952,1741809056582,-500.0,0.00022465,2]
[356032953,1741809056591,-171.00957,0.00022465,7]
[356032954,1741809056600,-1653.56,0.00022465,2]
[356032955,1741809056609,-1051.09,0.00022465,2]
[356032956,1741809056619,-500.0,0.00022465,2]
[356032957,1741809056628,-610.44710715,0.00022465,2]
[356032958,1741809056638,-500.0,0.00022465,2]
[356032959,1741809056648,-1703.6,0.00022465,2]
[356032960,1741809056658,-500.0,0.00022465,2]
[356032961,1741809056667,-500.0,0.00022465,2]
[356032962,1741809056676,-151.0,0.00022465,7]
[356032963,1741809056686,-151.0,0.00022465,7]
[356032964,1741809056696,-151.0,0.00022465,7]
[356032965,1741809056707,-500.0,0.00022465,2]
[356032966,1741809056716,-151.0,0.00022465,7]
[356032967,1741809056725,-151.0,0.00022465,7]
[356032968,1741809056735,-151.0,0.00022465,7]
[356032969,1741809056744,-1047.52,0.00022465,2]
[356032970,1741809056753,-500.0,0.00022465,2]
[356032971,1741809056763,-500.0,0.00022465,2]
[356032972,1741809056773,-619.47092971,0.00022465,2]
[356032973,1741809056782,-500.0,0.00022465,2]
[356032974,1741809056792,-500.0,0.00022465,2]
[356032975,1741809056802,-500.0,0.00022465,2]
[356032976,1741809056811,-500.0,0.00022465,2]
[356032977,1741809056821,-1574.66,0.00022465,2]
[356032978,1741809056831,-159.164145,0.00022465,7]
[356032979,1741809056842,-500.0,0.00022465,2]
[356032980,1741809056851,-500.0,0.00022465,2]
[356032981,1741809056862,-537.0,0.00022465,2]
[356032982,1741809056871,-500.34277318,0.00022465,2]
[356032983,1741809056881,-500.0,0.00022465,2]
[356032984,1741809056890,-1769.55,0.00022465,2]
[356032985,1741809056900,-523.24,0.00022465,2]
[356032986,1741809056910,-500.0,0.00022465,2]
[356032987,1741809056920,-500.0,0.00022465,2]
[356032988,1741809056930,-746.4,0.00022465,2]
[356032989,1741809056940,-151.0,0.00022465,7]
[356032990,1741809056949,-151.0,0.00022465,7]
[356032991,1741809056959,-151.0,0.00022465,7]
[356032992,1741809056969,-1191.99,0.00022465,2]
[356032993,1741809056978,-500.0,0.00022465,2]
[356032994,1741809056988,-573.41616792,0.00022465,2]
[356032995,1741809056997,-2156.11,0.00022465,2]
[356032996,1741809057006,-500.0,0.00022465,2]
[356032997,1741809057016,-500.0,0.00022465,2]
[356032998,1741809057025,-12973.82,0.00022465,2]
[356032999,1741809057035,-500.0,0.00022465,2]
[356033000,1741809057044,-500.0,0.00022465,2]
[356033001,1741809057054,-500.0,0.00022465,2]
[356033002,1741809057063,-500.0,0.00022465,2]
[356033003,1741809057238,-4661.14,0.00022465,2]
[356033004,1741809057248,-500.0,0.00022465,2]
[356033005,1741809057258,-500.0,0.00022465,2]
[356033006,1741809057267,-500.0,0.00022465,2]
[356033007,1741809057277,-500.0,0.00022465,2]
[356033008,1741809057286,-500.0,0.00022465,2]
[356033009,1741809057296,-500.0,0.00022465,2]
[356033010,1741809057305,-500.0,0.00022465,2]
[356033011,1741809057315,-181.977683,0.00022465,7]
[356033012,1741809057324,-181.977683,0.00022465,7]
[356033013,1741809057334,-181.977683,0.00022465,7]
[356033014,1741809057343,-500.0,0.00022465,2]
[356033015,1741809057353,-500.0,0.00022465,2]
[356033016,1741809057362,-514.86,0.00022465,2]
[356033017,1741809057372,-181.977683,0.00022465,7]
[356033018,1741809057381,-181.977683,0.00022465,7]
[356033019,1741809057390,-181.977683,0.00022465,7]
[356033020,1741809057399,-500.0,0.00022465,2]
[356033021,1741809057409,-957.96,0.00022465,2]
[356033022,1741809057418,-500.0,0.00022465,2]
[356033023,1741809057428,-1050.365468,0.00022465,7]
[356033024,1741809057438,-500.0,0.00022465,2]
[356033025,1741809057447,-1050.365468,0.00022465,7]
[356033026,1741809057458,-1050.365468,0.00022465,7]
[356033027,1741809057467,-7479.31,0.00022465,2]
[356033028,1741809057476,-151.0,0.00022465,7]
[356033029,1741809057486,-151.0,0.00022465,7]
[356033030,1741809057495,-151.0,0.00022465,7]
[356033031,1741809057505,-500.0,0.00022465,2]
[356033032,1741809057515,-775.01,0.00022465,2]
[356033033,1741809057523,-1050.365468,0.00022465,7]
[356033034,1741809057533,-1050.365468,0.00022465,7]
[356033035,1741809057542,-1050.365468,0.00022465,7]
[356033036,1741809057552,-500.0,0.00022465,2]
[356033037,1741809057561,-500.0,0.00022465,2]
[356033038,1741809057571,-546.23,0.00022465,2]
[356033039,1741809057580,-828.39,0.00022465,2]
[356033040,1741809057589,-500.0,0.00022465,2]
[356033041,1741809057599,-4805.33,0.00022465,2]
[356033042,1741809057608,-607.2,0.00022465,2]
[356033043,1741809057618,-3238.74,0.00022465,2]
[356033044,1741809057627,-186.13418734,0.00022465,2]
[356033045,1741809057636,-151.0,0.00022465,7]
[356033046,1741809057646,-207.045328,0.00022465,7]
[356033047,1741809057655,-500.0,0.00022465,2]
[356033048,1741809057665,-500.0,0.00022465,2]
[356033049,1741809057674,-1542.79,0.00022465,2]
[356033050,1741809057683,-500.0,0.00022465,2]
[356033051,1741809057692,-500.0,0.00022465,2]
[356033052,1741809057701,-500.0,0.00022465,2]
[356033053,1741809057711,-1463.89,0.00022465,2]
[356033054,1741809057720,-2697.44,0.00022465,2]
[356033055,1741809057730,-1731.81,0.00022465,2]
[356033056,1741809057739,-500.0,0.00022465,2]
[356033057,1741809057748,-500.0,0.00022465,2]
[356033058,1741809057758,-659.73,0.00022465,2]
[356033059,1741809057767,-4017.16,0.00022465,2]
[356033060,1741809057776,-500.0,0.00022465,2]
[356033061,1741809057785,-707.42,0.00022465,2]
[356033062,1741809057795,-500.0,0.00022465,2]
[356033063,1741809057804,-2056.84,0.00022465,2]
[356033064,1741809057813,-500.0,0.00022465,2]
[356033065,1741809057833,-500.0,0.00022465,2]
[356033066,1741809057844,-831.29,0.00022465,2]
[356033067,1741809057854,-500.0,0.00022465,2]
[356033068,1741809057863,-500.0,0.00022465,2]
[356033069,1741809057873,-1675.01,0.00022465,2]
[356033070,1741809057883,-2757.77,0.00022465,2]
[356033071,1741809057893,-500.0,0.00022465,2]
[356033072,1741809057903,-500.0,0.00022465,2]
[356033073,1741809057913,-500.0,0.00022465,2]
[356033074,1741809057923,-2794.14,0.00022465,2]
[356033075,1741809057933,-509.94627412,0.00022465,2]
[356033076,1741809057943,-542.49,0.00022465,2]
[356033077,1741809057953,-535.57298053,0.00022465,2]
[356033078,1741809057963,-500.0,0.00022465,2]
[356033079,1741809057973,-151.0,0.00022465,7]
[356033080,1741809057983,-151.0,0.00022465,7]
[356033081,1741809057993,-151.0,0.00022465,7]
[356033082,1741809058004,-831.75,0.00022465,2]
[356033083,1741809058014,-673.09,0.00022465,2]
[356033084,1741809058025,-500.0,0.00022465,2]
[356033085,1741809058035,-500.0,0.00022465,2]
[356033086,1741809058046,-500.0,0.00022465,2]
[356033087,1741809058056,-151.0,0.00022465,7]
[356033088,1741809058066,-268.594108,0.00022465,7]
[356033089,1741809058082,-552.32441203,0.00022465,2]
[356033090,1741809058092,-584.68,0.00022465,2]
[356033091,1741809058102,-1065.45,0.00022465,2]
[356033092,1741809058112,-500.0,0.00022465,2]
[356033093,1741809058122,-582.43,0.00022465,2]
[356033094,1741809058132,-3082.95,0.00022465,2]
[356033095,1741809058141,-151.0,0.00022465,7]
[356033096,1741809058151,-151.0,0.00022465,7]
[356033097,1741809058162,-151.0,0.00022465,7]
[356033098,1741809058172,-500.0,0.00022465,2]
[356033099,1741809058182,-17841.71,0.00022465,2]
[356033100,1741809058192,-500.0,0.00022465,2]
[356033101,1741809058202,-500.0,0.00022465,2]
[356033102,1741809058213,-500.0,0.00022465,2]
[356033103,1741809058222,-500.0,0.00022465,2]
[356033104,1741809058233,-1307.9,0.00022465,2]
[356033105,1741809058242,-500.0,0.00022465,2]
[356033106,1741809058252,-500.0,0.00022465,2]
[356033107,1741809058262,-500.0,0.00022465,2]
[356033108,1741809058271,-500.0,0.00022465,2]
[356033109,1741809058281,-2321.42,0.00022465,2]
[356033110,1741809058291,-500.0,0.00022465,2]
[356033111,1741809058301,-591.64,0.00022465,2]
[356033112,1741809058311,-60698.39,0.00022465,2]
[356033113,1741809058320,-500.0,0.00022465,2]
[356033114,1741809058330,-500.0,0.00022465,2]
[356033115,1741809058339,-500.0,0.00022465,2]
[356033116,1741809058349,-500.0,0.00022465,2]
[356033117,1741809058360,-500.0,0.00022465,2]
[356033118,1741809058370,-500.0,0.00022465,2]
[356033119,1741809058379,-500.0,0.00022465,2]
[356033120,1741809058388,-500.0,0.00022465,2]
[356033121,1741809058399,-697.84,0.00022465,2]
[356033122,1741809058408,-388.013246,0.00022465,7]
[356033123,1741809058418,-847.83,0.00022465,2]
[356033124,1741809058428,-388.013246,0.00022465,7]
[356033125,1741809058438,-500.0,0.00022465,2]
[356033126,1741809058448,-388.013246,0.00022465,7]
[356033127,1741809058457,-388.013246,0.00022465,7]
[356033128,1741809058466,-388.013246,0.00022465,7]
[356033129,1741809058477,-500.0,0.00022465,2]
[356033130,1741809058486,-388.013246,0.00022465,7]
[356033131,1741809058496,-200.0,0.00022465,2]
[356033132,1741809058505,-2676.65,0.00022465,2]
[356033133,1741809058515,-2327.8,0.00022465,2]
[356033134,1741809058525,-500.0,0.00022465,2]
[356033135,1741809058535,-500.0,0.00022465,2]
[356033136,1741809058545,-500.0,0.00022465,2]
[356033137,1741809058555,-737.21,0.00022465,2]
[356033138,1741809058566,-500.0,0.00022465,2]
[356033139,1741809058576,-500.0,0.00022465,2]
[356033140,1741809058586,-7409.68,0.00022465,2]
[356033141,1741809058597,-500.0,0.00022465,2]
[356033142,1741809058607,-220.152077,0.00022465,7]
[356033143,1741809058617,-220.152077,0.00022465,7]
[356033144,1741809058627,-329.453428,0.00022465,7]
[356033145,1741809058637,-220.152077,0.00022465,7]
[356033146,1741809058647,-329.453428,0.00022465,7]
[356033147,1741809058657,-329.453428,0.00022465,7]
[356033148,1741809058666,-500.0,0.00022465,2]
[356033149,1741809058676,-1000.0,0.00022465,7]
[356033150,1741809058686,-500.0,0.00022465,2]
[356033151,1741809058696,-1167.95,0.00022465,2]
[356033152,1741809058706,-500.0,0.00022465,2]
[356033153,1741809058716,-778.01,0.00022465,2]
[356033154,1741809058726,-220.152077,0.00022465,7]
[356033155,1741809058735,-220.152077,0.00022465,7]
[356033156,1741809058746,-423.70646891,0.00022465,2]
[356033157,1741809058755,-220.152077,0.00022465,7]
[356033158,1741809058765,-329.453428,0.00022465,7]
[356033159,1741809058775,-515.77695533,0.00022465,2]
[356033160,1741809058784,-329.453428,0.00022465,7]
[356033161,1741809058794,-500.0,0.00022465,2]
[356033162,1741809058804,-500.0,0.00022465,2]
[356033163,1741809058814,-329.453428,0.00022465,7]
[356033164,1741809058823,-500.0,0.00022465,2]
[356033165,1741809058833,-500.0,0.00022465,2]
[356033166,1741809058842,-500.0,0.00022465,2]
[356033167,1741809058852,-500.0,0.00022465,2]
[356033168,1741809058861,-986.1,0.00022465,2]
[356033169,1741809058871,-1084.33,0.00022465,2]
[356033170,1741809058881,-500.0,0.00022465,2]
[356033171,1741809058890,-500.0,0.00022465,2]
[356033172,1741809058899,-500.0,0.00022465,2]
[356033173,1741809058909,-5963.29,0.00022465,2]
[356033174,1741809058918,-500.0,0.00022465,2]
[356033175,1741809058928,-11334.24,0.00022465,2]
[356033176,1741809058938,-3477.78,0.00022465,2]
[356033177,1741809058949,-500.0,0.00022465,2]
[356033178,1741809058960,-500.0,0.00022465,2]
[356033179,1741809058970,-353.751824,0.00022465,7]
[356033180,1741809058980,-353.751824,0.00022465,7]
[356033181,1741809058991,-353.751824,0.00022465,7]
[356033182,1741809059001,-500.0,0.00022465,2]
[356033183,1741809059011,-500.0,0.00022465,2]
[356033184,1741809059021,-500.0,0.00022465,2]
[356033185,1741809059030,-500.0,0.00022465,2]
[356033186,1741809059041,-500.0,0.00022465,2]
[356033187,1741809059051,-353.751824,0.00022465,7]
[356033188,1741809059061,-353.751824,0.00022465,7]
[356033189,1741809059071,-353.751824,0.00022465,7]
[356033190,1741809059085,-2040.4,0.00022465,2]
[356033191,1741809059095,-500.0,0.00022465,2]
[356033192,1741809059105,-968.41,0.00022465,2]
[356033193,1741809059115,-151.0,0.00022465,7]
[356033194,1741809059126,-151.0,0.00022465,7]
[356033195,1741809059136,-151.0,0.00022465,7]
[356033196,1741809059147,-500.0,0.00022465,2]
[356033197,1741809059158,-514.82135152,0.00022465,2]
[356033198,1741809059169,-500.0,0.00022465,2]
[356033199,1741809059179,-500.0,0.00022465,2]
[356033200,1741809059189,-151.0,0.00022465,7]
[356033201,1741809059199,-1660.26,0.00022465,2]
[356033202,1741809059210,-918.0,0.00022465,2]
[356033203,1741809059220,-151.0,0.00022465,7]
[356033204,1741809059230,-500.0,0.00022465,2]
[356033205,1741809059241,-272.04607118,0.00022465,7]
[356033206,1741809059251,-1340.29,0.00022465,2]
[356033207,1741809059260,-4605.81,0.00022465,2]
[356033208,1741809059271,-2234.82,0.00022465,2]